Cogmind - Beta 14 @@@ ROGUE MODE // 2024.08.29 @ 22:17:31 Player: star Result: Destroyed by G-47 Trooper with Particle Gun Performance ------------- Evolutions (0) 0 Regions Visited (2) 400 Robots Destroyed (18) 90 Value Destroyed (288) 288 Prototype IDs (0) 0 Alien Tech Used (0) 0 Bonus (0) 0 TOTAL SCORE: 778 Bonus ------- None Cogmind --------- Core Integrity 0/250 Matter 223/300 Energy 125/125 System Corruption 0% Temperature Cool (48) Movement Treading (160) Location -10/Mines Parts ------- > --- POWER (1) -------- Light Ion Engine > --- PROPULSION (2) --- Light Treads Light Treads > --- UTILITY (2) ------ Terrain Scanner Terrain Scan Processor > --- WEAPON (2) ------- Light Assault Rifle Light Cannon > --- INVENTORY (5) ---- Small Storage Unit Medium Storage Unit Signal Interpreter Signal Interpreter Propulsion Shielding Peak State ------------ > --- POWER ------------ Light Ion Engine > --- PROPULSION ------- Light Treads Light Treads > --- UTILITY ---------- Terrain Scanner Terrain Scan Processor > --- WEAPON ----------- Light Assault Rifle Light Cannon > --- INVENTORY -------- Small Storage Unit Signal Interpreter Signal Interpreter Propulsion Shielding [Rating: 8] Favorites ----------- Power Ion Engine Engine Ion Engine Propulsion Light Treads Treads Light Treads Wheel Compact Wheel Utility Small Storage Unit Device Terrain Scanner Storage Small Storage Unit Processor Signal Interpreter Weapon Medium Laser Energy Gun Medium Laser Ballistic Gun Light Assault Rifle Ballistic Cannon Light Cannon Build | -11 -10 -10 ------- Run | Yrd Mat Min Slots Evolved . | . . . Power . | . . . Propulsion . | . . . Utility . | . . . Weapon . | . . . Parts Attached 22 | 8 10 4 Power 2 | 1 . 1 Engine 2 | 1 . 1 Core . | . . . Reactor . | . . . Propulsion 11 | 4 7 . Treads 9 | 2 7 . Leg . | . . . Wheel 2 | 2 . . Hover . | . . . Flight . | . . . Utility 5 | 1 1 3 Device 1 | . . 1 Storage 2 | 1 . 1 Processor 2 | . 1 1 Hackware . | . . . Protection . | . . . Artifact . | . . . Weapon 4 | 2 2 . Energy Gun 2 | 2 . . Energy Cannon . | . . . Ballistic Gun 1 | . 1 . Ballistic Cannon 1 | . 1 . Launcher . | . . . Special Weapon . | . . . Impact Weapon . | . . . Slashing Weapon . | . . . Piercing Weapon . | . . . Special Melee Weapon . | . . . Unidentified Prototypes . | . . . Parts Lost 5 | . 5 . Power 1 | . 1 . Propulsion 2 | . 2 . Utility . | . . . Weapon 2 | . 2 . Highest Loss Streak 4 | . 4 . To Critical Strikes . | . . . Average Slot Usage (%) 93 | . 91 98 Engine 13 | . 13 12 Treads 27 | . 27 28 Device 1 | . . 5 Storage 12 | . 14 9 Processor 9 | . 7 12 Energy Gun 16 | . 23 . Ballistic Gun 5 | . 2 14 Ballistic Cannon 5 | . 1 14 Peak Build Rating 8 | 6 7 8 Average Rating 6 | 4 6 7 On Entrance 4 | . 6 6 Naked Turns . | . . . Heaviest Build 18 | 14 14 18 Greatest Support 40 | 40 40 40 Greatest Overweight (x) 1 | 1 . . Average Overweight (x) . | . . . Largest Inventory Capacity 10 | 8 8 10 Average Capacity 7 | 6 8 7 Most Carried 6 | 1 6 5 Average Carried 3 | . 3 4 Final Capacity 8 | 8 8 5 Final Carried 5 | 1 3 5 Class Distribution -------------------- 100% | Mutant Dominant Class ---------------- Mutant | -10/Materials Mutant | -10/Mines Resources | -11 -10 -10 ----------- Run | Yrd Mat Min Matter Collected 467 | 211 149 107 Remotely . | . . . Salvage Created 562 | . 506 56 Parts 37 | . 26 11 Haulers Intercepted 1 | . 1 . Recyclers Shooed 1 | . 1 . Parts Field Recycled . | . . . Retrieved Matter . | . . . Parts Self-Destructed . | . . . Prevented . | . . . Kills | -11 -10 -10 ------- Run | Yrd Mat Min Combat Hostiles Destroyed 11 | . 8 3 Guns 9 | . 7 2 Cannons 1 | . . 1 Classes Destroyed 6 | . 6 . Builder 3 | . 2 1 Hauler 1 | . 1 . Recycler 2 | . 2 . Operator 1 | . 1 . Swarmer 6 | . 3 3 Grunt 5 | . 5 . Best Kill Streak 4 | . 4 2 Combat Bots Only 3 | . 3 2 Max Kills in Single Turn 2 | . 2 1 Gunslinging . | . . . Exploded . | . . . Melee . | . . . Uniques/NPCs Destroyed . | . . . Combat | -11 -10 -10 -------- Run | Yrd Mat Min Hostile Shots Fired 124 | . 89 35 Missed 28 | . 20 8 Damage Taken 1090 | . 828 262 Core 260 | . 190 70 Absorbed by Shields . | . . . Core Remaining (%) 100 | 100 . . Volleys Fired 68 | . 49 19 Largest 2 | . 2 2 Hottest 100 | . 100 55 Shots Fired 128 | . 90 38 Gun 102 | . 83 19 Cannon 26 | . 7 19 Launcher . | . . . Special . | . . . Kinetic 61 | . 23 38 Thermal 67 | . 67 . Explosive . | . . . Electromagnetic . | . . . Robot Hit Streak 5 | . 5 4 Robot Miss Streak 3 | . 3 3 Penetration Max . | . . . Secondary Targets . | . . . Shots Hit Robots 77 | . 59 18 Core Hits 30 | . 22 8 Critical Kills . | . . . Critical Parts Destroyed . | . . . Critical Strikes 3 | . 3 . Burn 3 | . 3 . Melee Attacks . | . . . Impact . | . . . Slashing . | . . . Piercing . | . . . Sneak Attacks . | . . . Combat Hostiles . | . . . Follow-up Attacks . | . . . Damage Inflicted 947 | . 729 218 Guns 731 | . 637 94 Cannons 216 | . 92 124 Explosions . | . . . Melee . | . . . Ramming . | . . . Kinetic 401 | . 183 218 Thermal 546 | . 546 . Explosive . | . . . Electromagnetic . | . . . Impact . | . . . Slashing . | . . . Piercing . | . . . Highest Corruption . | . . . Average Corruption . | . . . Corruption Purged . | . . . Corruption Blocked . | . . . Overload Shots . | . . . Overflow Damage 7 | . 7 . Projectiles 7 | . 7 . Explosions . | . . . Melee . | . . . Knockbacks 3 | . 1 2 Impact . | . . . Kinetic 3 | . 1 2 Secondary . | . . . Self-Inflicted Damage . | . . . Shots . | . . . Rammed . | . . . Targets Rammed . | . . . Kicked . | . . . Crushed . | . . . Highest Temperature 483 | . 483 39 Average Temperature 123 | . 145 9 Received Heat Transfer 435 | . 366 69 Effects 3 | . 3 . Shutdowns 2 | . 2 . Energy Bleed 1 | . 1 . Siege Activations . | . . . Robots Corrupted . | . . . Combat Hostiles . | . . . Parts Fried . | . . . Impact Corruptions . | . . . Robots Melted 1 | . 1 . Combat Hostiles 1 | . 1 . Parts Melted 2 | . 2 . Heat Transferred 1850 | . 1850 . Parts Sabotaged . | . . . Parts Stolen . | . . . Parts Stripped . | . . . Power Chain Reactions . | . . . Alert | -11 -10 -10 ------- Run | Yrd Mat Min Peak Influence 200 | . 200 96 Initial 21 | . . 21 Average 61 | . 54 90 Maximum Alert Level 1 | . 1 . Low Security (%) 97 | 100 96 100 Level 1 2 | . 3 . Level 2 . | . . . Level 3 . | . . . Level 4 . | . . . Level 5 . | . . . High Security . | . . . Max Security . | . . . Squads Dispatched 1 | . 1 . Investigation . | . . . Extermination . | . . . Reinforcement 1 | . 1 . Assault . | . . . Garrison . | . . . Intercept . | . . . Searches Triggered . | . . . Construction Impeded . | . . . Haulers Reinforced . | . . . Active Scanning Responses . | . . . Cargo Convoy Interrupts . | . . . Stealth | -11 -10 -10 --------- Run | Yrd Mat Min Distress Signals 2 | . 2 . Communications Jammed . | . . . Distress Signals . | . . . Times Spotted 23 | . 18 5 Peak Tracking Total 5 | . 5 3 Tactical Retreats 1 | . 1 . Traps | -11 -10 -10 ------- Run | Yrd Mat Min Traps Triggered 3 | . 3 . Indirectly . | . . . Trap Hack Attempts . | . . . Triggered . | . . . Disarmed . | . . . Reprogrammed . | . . . Reused . | . . . Traps Extracted . | . . . Installed . | . . . Triggered . | . . . Machines | -11 -10 -10 ---------- Run | Yrd Mat Min Machines Disabled . | . . . Max in Single Turn . | . . . Machines Repaired . | . . . Machines Dismantled . | . . . Machines Sabotaged . | . . . Overloaded Fab Kills . | . . . Hacking | -11 -10 -10 --------- Run | Yrd Mat Min Machines Accessed 3 | . 3 . Terminals 3 | . 3 . Fabricators . | . . . Repair Stations . | . . . Recycling Units . | . . . Scanalyzers . | . . . Garrison Access . | . . . Total Hacks 10 | . 10 . Successful 6 | . 6 . Failed 4 | . 4 . Catastrophic . | . . . Database Lockouts . | . . . Manual 10 | . 10 . Terminals 10 | . 10 . Fabricators . | . . . Repair Stations . | . . . Recycling Units . | . . . Scanalyzers . | . . . Garrison Access . | . . . Terminal Hacks . | . . . Fabricator Hacks . | . . . Repair Station Hacks . | . . . Recycling Unit Hacks . | . . . Scanalyzer . | . . . Garrison Access Hacks . | . . . Unauthorized Hacks 6 | . 6 . Terminals 6 | . 6 . Botnet 2 | . 2 . Operators 1 | . 1 . Skim 3 | . 3 . Fabricators . | . . . Repair Stations . | . . . Recycling Units . | . . . Scanalyzers . | . . . Garrison Access . | . . . Data Cores Recovered . | . . . Used . | . . . Hacking Detections 1 | . 1 . Full Trace Events . | . . . Feedback Events . | . . . Feedback Blocked . | . . . Robot Schematics Acquired . | . . . Robots Built . | . . . Authchips . | . . . Time . | . . . Total Robot Build Rating . | . . . Part Schematics Acquired . | . . . Parts Built . | . . . Authchips . | . . . Time . | . . . Total Part Build Rating . | . . . Parts Repaired . | . . . Time . | . . . Parts Recycled . | . . . Recycled Matter . | . . . Retrieved Matter . | . . . Retrieved Components . | . . . Parts Scanalyzed . | . . . Part Schematics Acquired . | . . . Parts Damaged . | . . . Bothacking | -11 -10 -10 ------------ Run | Yrd Mat Min Used RIF Installer . | . . . Robots Hacked . | . . . Non-combat . | . . . Combat . | . . . Robot Hacks Applied . | . . . Relay Couplers Released . | . . . Fabnet Peak Effective % . | . . . Robots Rewired . | . . . Allies Hacked . | . . . Hacks Repelled . | . . . Allies | -11 -10 -10 -------- Run | Yrd Mat Min Total Allies . | . . . Largest Group . | . . . Highest-Rated Group . | . . . Highest-Rated Ally . | . . . Total Orders . | . . . Ally Attacks . | . . . Total Damage . | . . . Kills . | . . . Allies Corrupted . | . . . Allies Melted . | . . . Intel | -11 -10 -10 ------- Run | Yrd Mat Min Robot Analysis Total . | . . . Derelict Logs Recovered . | . . . Drone Launches . | . . . Drone Recoveries . | . . . Exploration | -11 -10 -10 ------------- Run | Yrd Mat Min Turns Passed 1405 | 83 922 400 Spaces Moved 662 | 55 458 149 Core 16 | 16 . . Treads 642 | 35 458 149 Legs . | . . . Wheels 4 | 4 . . Hover . | . . . Flight . | . . . Fastest Speed 50 | 50 160 160 Average Speed 157 | 127 160 160 Slowest Speed 160 | 160 160 160 Overloaded Moves . | . . . Propulsion Burnouts . | . . . Robots Hopped . | . . . Cave-ins Triggered . | . . . Exploration Rate (%) 36 | 4 68 37 Regions Visited 2 Branch Regions 1 Pre-discovered Areas . | . . . Known Exits Taken 1 | . 1 . Unknown Exits Taken 1 | 1 . . Scrap Searched 1 | . . 1 Spaces Dug . | . . . Terrain Destroyed . | . . . Melee . | . . . Projectile . | . . . AOE . | . . . Terrain Rammed . | . . . Walls Destroyed . | . . . Machines Disabled . | . . . Actions | -11 -10 -10 --------- Run | Yrd Mat Min Total 898 | 64 558 276 Wait 141 | 1 37 103 Move 660 | 54 457 149 Hop . | . . . Pick Up 6 | 1 4 1 Fast Attach 12 | 6 5 1 Attach 3 | . 3 . Detach . | . . . Swap 7 | 2 2 3 Drop 1 | . 1 . Fire 68 | . 49 19 Melee . | . . . Ram . | . . . Kick . | . . . Crush . | . . . Escape Stasis . | . . . Rewire . | . . . Trap . | . . . Miscellaneous . | . . . Route ------- -11/Scrapyard -10/Materials (discovered 3 exits: *Mat x2 / *Min) -10/Mines (discovered 1 exit: *Mat) History --------- Turn | Location | Event 5 | -11/Scrapyard | Discovered new exit (range 14) 84 | -11/Scrapyard | Entered Materials 209 | -10/Materials | Discovered new exit (range 3) 313 | -10/Materials | Build established: Mutant 334 | -10/Materials | Discovered new exit (range 6) 424 | -10/Materials | Discovered new exit (range 14) 664 | -10/Materials | Identified exit to Mines 851 | -10/Materials | Core integrity fell below 50% 891 | -10/Materials | Lost 4 parts (2n2w) 1006 | -10/Materials | Entered Mines 1011 | -10/Mines | Core integrity fell below 20% 1145 | -10/Mines | Discovered new exit (range 12) 1171 | -10/Mines | Identified exit to Materials 1406 | -10/Mines | Destroyed by G-47 Trooper with Particle Gun Last Messages --------------- 01091_ Searching scrap... 01091_ Found Lgt. Assault Rifle. 01091_ Found Med. Storage Unit. 01091_ Found 50 Matter. 01092_ Acquired 50 matter. 01145_ EXIT=FOUND 01163_ U-05 Engineer knocked back. 01171_ EXIT=IDENTIFIED: MATERIALS 01219_ U-05 Engineer destroyed. 01227_ Acquired 20 matter. 01235_ K-01 Serf collects debris. 01241_ Discarded Signal Interpreter. 01241_ Acquired Terrain Scanner. 01246_ Acquired 3 matter. 01254_ Acquired 4 matter. 01255_ K-01 Serf collects debris. 01281_ Acquired Terrain Scan Processor. 01283_ Acquired Med. Storage Unit. 01286_ R-06 Scavenger collects Wheel. 01402_ G-34 Mercenary knocked back. Map ----- +----------------------------------------------------+ | ?????????????????????????????????????????????????? | | ?????????????????????????????????????????????????? | | ?????????????????????????????????????????????????? | | ???????????????????????????????????????########### | | ??????????????????????????????????####?# # | | ?????????????????????????????###### ### [ | | ????????????????????????????## ## ##### | | ??????????????????????####### ## #???# | | ????????????####?????## ## ## #???## | | ???????????## ###""## ## ## #????### | | ???????????# X % ### ## #??????? | | ???????????# ### ## #??????? | | ???????????## ## #### ## ## #??????? | | ????????????## ##??## ## ## #??????? | | ?#???##?????## < ####?#?## ### #??????? | | ## ## ##### ##???????#####?# #??????? | | # ###??##??###############??????? | | ######???#??##?#?#?####????????????? | | ##??????####?########?###???????????? | | # ## ##?????#####?##?###?#####???????????? | | ### ???## ########???#??#?#?##?##??#?????????? | | ?????????## ###########?##?###?#????????? | | ??????????## ##???###??????????? | | ???????????## ### ######### #?##??#####???????? | | ????????????# #### ######### ###?#####?#???????? | | ????????????####?## @### ##?#####?##??????? | | ????????????????#?# #######?????????? | | ????????????????######## ####??????? | | ?????????????#????######### ####?????? | | ???????????????######?#??### #?????? | | ????????????????#?##?#???#?## g #??? | | ?????????????????###?##??#### g#### ??? | | ???????????????##?#########?# %##?## ??? | | ??????????????#?#?########### ##?### ???? | | ?????????????????##########?# #?####### """???? | | ?????????????????##?##?####?# ###?####?? "?????? | | ??????????????????##?#???? ? ?###?#? ?? "?????? | | ???????????????????? ? ??##?# ????????? | | ??????????????????## ? ? ?#??#??????????? | | ????????????????????? ???#?## ##???????????? | | ??????????????????????##?#??### ?#??#????????? | | ???????????????????????#??####?# ?????????????? | | ????????????????????????#?###?## #????????????? | | ???????????????????????????????? ###????????????? | | ???????????????????????????????? #??????????????? | | ????????????????????????????????? #??????????????? | | ????????????????????????????????? #??????????????? | | ????????????????????????????????? ???????????????? | | ?????????????????????????????????????????????????? | | ?????????????????????????????????????????????????? | +----------------------------------------------------+ Best States ------------- Heat Dissipation 25 Energy Generation 10 Energy Capacity 250 Matter Stores 300 Matter Capacity 300 Sight Range 16 Terrain Scan Range 14 Terrain Scan Density 85 Evasion (%) 40 Recoil Reduction 2 Item Schematics ----------------- None Robot Schematics ------------------ None Fabricated ------------ Nothing Alien Tech Used ----------------- None Achievements -------------- None Challenges ------------ None Game ------ Seed ThunderCorePit Manual? 0 Play Time 00:10:58 Cumulative 63.1 hours Start 2024.08.29 @ 21:38:34 End 2024.08.29 @ 22:17:31 Sessions 1 Manual Loads 0 Difficulty Rogue Special Mode None Game No. 113 Rogue 113 Adventurer 0 Explorer 0 Win Type - Total 0 Types 0/0/0/0/0/0/0/0/0 Lore% 23 Gallery% 44 Achievement% 36 Wizard Run 0 Options --------- Layout 0 ASCII 0 Keyboard 0 Movement Numpad Keybinds 0 Fullscreen 2 Font 18/SmallcapsGlow Map View 76x50 Zoom Use 0% Tactical HUD 1 Map Filters NONE Filters NONE Steam 1 RUN: 8594475a-6094-45a3-be72-54c557c3ac44